bitfinex-derivatives/quotes_ETHF0:USTF0_20260118
["timestamp","ask_amount","ask_price","bid_price","bid_amount"]
[1768747736463,0.95834175,3330.4,3329.3,0.9629911]
[1768747736661,0.95834175,3330.3,3329.3,0.9629911]
[1768747736866,0.95834175,3330.2,3329.3,0.9629911]
[1768747737064,3.46139686,3330.5,3329.3,0.9629911]
[1768747737269,0.95835183,3330.4,3329.3,0.9629911]
[1768747737456,0.95835183,3330.3,3329.3,0.9629911]
[1768747737661,0.95835183,3330.2,3329.3,0.9629911]
[1768747737858,3.46139686,3330.5,3329.3,0.9629911]
[1768747738061,0.9583606,3330.4,3329.3,0.9629911]
[1768747738269,3.46139686,3330.5,3329.3,0.9629911]
[1768747738270,0.9583606,3330.3,3329.3,0.9629911]
[1768747738567,0.9583606,3330.2,3329.3,0.9629911]
[1768747738769,3.46139686,3330.5,3329.1,0.00317417]
[1768747738954,4.38353209,3330.4,3329.1,0.00317417]
[1768747739162,0.9629911,3330.2,3329.1,0.00317417]
[1768747741172,0.95838058,3330.1,3329.1,0.00317417]
[1768747741372,0.9629911,3330.2,3329.1,0.00317417]
[1768747741671,0.95840712,3330.1,3329.1,0.00317417]
[1768747741872,0.9629911,3330.2,3329.1,0.00317417]
[1768747742071,0.95840712,3330.1,3329.1,0.00317417]
[1768747742367,3.42516156,3330.4,3329.1,0.00317417]
[1768747742575,0.95845612,3330.3,3329.2,0.9629911]
[1768747742870,0.95845612,3330.2,3329.1,0.00317417]
[1768747743057,0.95845612,3330.1,3329.1,0.00317417]
[1768747743256,3.42516156,3330.4,3329.1,0.00317417]
[1768747743472,0.95850047,3330.3,3329.1,0.00317417]
[1768747743668,0.95850047,3330.2,3329.1,0.00317417]
[1768747743867,0.95850047,3330.1,3329.1,0.00317417]
[1768747744069,3.42516156,3330.4,3329.1,0.00317417]
[1768747744273,0.95852814,3330.3,3329.1,0.00317417]
[1768747744570,0.95852814,3330.2,3329.1,0.00317417]
[1768747744771,0.95852814,3330.1,3329.1,0.00317417]
[1768747744958,3.42516156,3330.4,3329.1,0.00317417]
[1768747745164,0.95855451,3330.3,3329.1,0.00317417]
[1768747745365,0.95855451,3330.2,3329.1,0.00317417]
[1768747745569,0.95855451,3330.1,3329.1,0.00317417]
[1768747745774,3.42516156,3330.4,3329.1,0.00317417]
[1768747745960,0.95861438,3330.3,3329.1,0.00317417]
[1768747746164,0.95861438,3330.2,3329.1,4.35178926]
[1768747746360,3.42516156,3330.7,3329.2,3.3857496]
[1768747746573,0.95865555,3330.6,3329.2,3.3857496]
[1768747746759,0.95865555,3330.5,3329.2,3.3857496]
[1768747746965,0.95865555,3330.4,3329.2,3.3857496]
[1768747747164,3.42516156,3330.7,3329.2,3.3857496]
[1768747747365,0.95862095,3330.6,3329.2,3.5359996]
[1768747747576,0.95862095,3330.5,3329.2,3.5359996]
[1768747747773,0.00322258,3330.8,3329.6,3.3857496]
[1768747751176,0.00322258,3330.8,3329.6,3.5359796]
[1768747751787,3.42516156,3331.5,3329.6,3.5359796]
[1768747752973,3.42898298,3331.5,3329.6,3.5359796]
[1768747754075,3.42898298,3331.5,3329.8,3.3857496]
[1768747757691,3.42898298,3331.5,3329.9,2.427]
[1768747758391,3.42898298,3331.5,3329.8,3.3857496]
[1768747758690,3.42898298,3331.5,3329.9,2.43]
[1768747759791,3.42516156,3331.3,3329.9,2.43]
[1768747759987,0.95046863,3331.2,3329.9,2.43]
[1768747760293,0.95046863,3331.1,3330.0,2.435]
[1768747760487,3.42516156,3331.3,3330.0,2.435]
[1768747760681,0.95048044,3331.2,3330.0,2.435]
[1768747760989,0.95048044,3331.1,3330.0,2.435]
[1768747761288,3.42516156,3331.3,3330.0,2.435]
[1768747761489,0.95052011,3331.2,3330.0,2.435]
[1768747761691,0.95052011,3331.1,3330.0,2.435]
[1768747761888,3.42516156,3331.3,3330.0,2.435]
[1768747762191,0.95052012,3331.2,3330.0,2.435]
[1768747762391,0.95052012,3331.1,3330.0,2.435]
[1768747762592,3.42516156,3331.3,3330.0,2.435]
[1768747762793,0.95050581,3331.2,3330.0,2.435]
[1768747762993,0.95050581,3331.1,3330.0,2.435]
[1768747763291,3.42516156,3331.3,3330.0,2.435]
[1768747763489,0.95050785,3331.2,3330.0,2.435]
[1768747763681,0.95050785,3331.1,3330.0,2.435]
[1768747763876,3.42516156,3331.3,3330.0,2.435]
[1768747764079,0.95050785,3331.2,3330.0,2.435]
[1768747764277,0.95050785,3331.1,3330.0,2.435]
[1768747764592,3.46870152,3331.0,3329.1,0.00317417]
[1768747764793,3.46870152,3330.8,3329.1,2.38017417]
[1768747764986,4.41932189,3330.7,3329.1,2.38017417]
[1768747765294,0.95062037,3330.6,3329.1,2.38017417]
[1768747765688,0.95062037,3330.6,3329.1,2.53042417]
[1768747767388,4.41932189,3330.6,3329.1,2.53042417]
[1768747767691,3.46870152,3330.6,3329.1,2.53042417]
[1768747770785,3.46870152,3330.6,3329.1,0.15342417]
[1768747771094,3.46870152,3330.4,3329.2,2.451]
[1768747771684,3.46870152,3330.4,3329.1,0.15342417]
[1768747776390,0.9513269,3330.3,3329.1,0.15342417]
[1768747776589,3.30975737,3330.3,3329.1,0.15342417]
[1768747792207,0.95216058,3330.2,3329.1,0.15342417]
[1768747792511,3.30975737,3330.3,3329.1,0.15342417]
[1768747792715,0.95216097,3330.2,3329.1,0.15342417]
[1768747793013,3.30975737,3330.3,3329.1,0.15342417]
[1768747793202,0.95216097,3330.2,3329.1,0.15342417]
[1768747793504,3.30975737,3330.3,3329.1,0.15342417]
[1768747793705,0.95252755,3330.2,3329.1,0.15342417]
[1768747794008,3.30975737,3330.3,3329.1,0.15342417]
[1768747794316,0.95252717,3330.2,3329.1,0.15342417]
[1768747794512,0.95252717,3330.1,3329.1,0.15342417]
[1768747794815,3.30975737,3330.3,3329.1,0.15342417]
[1768747795113,0.9531125,3330.2,3329.1,0.15342417]
[1768747795309,3.30975737,3330.3,3329.1,0.15342417]
[1768747795509,0.95314991,3330.2,3329.1,0.15342417]
[1768747795806,3.30975737,3330.3,3329.1,0.15342417]
[1768747796009,0.95314991,3330.2,3329.1,0.15342417]
[1768747796209,0.95319342,3330.1,3329.1,0.15342417]
[1768747796410,3.30975737,3330.3,3329.1,0.15342417]
[1768747796612,0.95319342,3330.2,3329.1,0.15342417]
[1768747796810,0.95319342,3330.1,3329.1,0.15342417]
[1768747797109,3.30975737,3330.3,3329.1,0.15342417]
[1768747797306,0.95324616,3330.2,3329.1,0.15342417]
[1768747797505,0.95324616,3330.1,3329.1,0.15342417]
[1768747797705,3.30975737,3330.3,3329.1,0.15342417]
[1768747797914,0.95324654,3330.2,3329.1,0.15342417]
[1768747798106,0.95324654,3330.1,3329.1,0.15342417]
[1768747798307,3.30975737,3330.3,3329.1,0.15342417]
[1768747798506,0.95331031,3330.2,3329.1,0.15342417]
[1768747798807,0.95331031,3330.1,3329.1,0.15342417]
[1768747799010,3.30975737,3330.3,3329.1,0.15342417]
[1768747799309,0.95331031,3330.2,3329.1,0.15342417]
[1768747799506,0.95331031,3330.1,3329.1,0.15342417]
[1768747799813,3.30975737,3330.3,3329.1,0.15342417]
[1768747800015,0.95338947,3330.2,3329.1,0.15342417]
[1768747800209,0.95338947,3330.1,3329.1,0.15342417]
[1768747800508,3.40533549,3330.7,3329.1,0.15342417]
[1768747800710,0.95349842,3330.6,3329.1,0.15342417]
[1768747800911,0.95349842,3330.5,3329.1,0.15342417]
[1768747801111,0.95349842,3330.4,3329.1,0.15342417]
[1768747801311,0.95349842,3330.3,3329.1,0.15342417]
[1768747801513,0.95349842,3330.2,3329.1,0.15342417]
[1768747801719,3.40533549,3330.7,3329.1,0.15342417]
[1768747802019,0.9535189,3330.6,3329.1,3.52810584]
[1768747802213,0.9535189,3330.5,3329.3,0.96286549]
[1768747802514,3.40533549,3330.7,3329.3,0.96286549]
[1768747802515,0.9535189,3330.4,3329.4,3.37468167]
[1768747802716,0.9535189,3330.3,3329.4,3.37468167]
[1768747802918,3.40533549,3331.1,3329.4,3.37468167]
[1768747803715,3.40533549,3331.1,3329.4,3.52492167]
[1768747804216,3.40533549,3331.1,3329.5,2.451]
[1768747805122,3.40533549,3331.0,3329.6,0.96253757]
[1768747811028,3.40533549,3331.0,3329.8,0.96253757]
[1768747811223,3.40533549,3331.0,3330.0,0.96253757]
[1768747811534,3.40533549,3331.0,3329.5,2.60123]
[1768747811734,3.40533549,3331.0,3329.8,0.96253757]
[1768747814035,3.40533549,3331.0,3329.5,0.15023]
[1768747814236,3.40533549,3331.0,3329.7,0.96253757]
[1768747814444,0.96253757,3330.9,3329.5,0.15023]
[1768747814625,3.40533549,3330.8,3329.5,0.15023]
[1768747814832,3.40533549,3330.8,3329.5,2.60023]
[1768747815231,3.40533549,3330.8,3329.7,0.96253757]
[1768747819741,3.40533549,3330.8,3329.5,3.56276757]
[1768747820837,3.40533549,3330.8,3329.5,1.11276757]
[1768747821041,3.40533549,3330.8,3329.6,2.459]
[1768747822641,3.40533549,3330.8,3329.5,0.15023]
[1768747822846,3.40533549,3330.8,3329.7,2.462]
[1768747825238,0.95019,3330.7,3329.7,3.42453757]
[1768747825444,3.40533549,3330.8,3329.7,3.42453757]
[1768747825744,0.95020157,3330.7,3329.7,3.42453757]
[1768747825946,3.40533549,3330.8,3329.7,3.42453757]
[1768747826148,0.95020157,3330.7,3329.7,3.42453757]
[1768747826449,3.40533549,3330.8,3329.7,3.42453757]
[1768747826650,0.95029418,3330.7,3329.7,3.42453757]
[1768747826845,3.40533549,3330.8,3329.7,3.42453757]
[1768747827144,0.95029418,3330.7,3329.7,3.42453757]
[1768747827346,3.40533549,3330.8,3329.7,3.42453757]
[1768747827644,0.95040846,3330.7,3329.7,3.42453757]
[1768747827844,3.40533549,3330.8,3329.7,3.42453757]
[1768747828047,0.95040846,3330.7,3329.7,3.42453757]
[1768747828353,3.40533549,3330.8,3329.7,3.42453757]
[1768747828544,4.39257386,3330.5,3329.1,0.00317417]
[1768747828751,3.43003629,3330.4,3329.2,3.43453757]
[1768747829140,3.43003629,3330.4,3329.4,0.96253757]
[1768747830649,3.43003629,3330.4,3329.1,0.00317417]
[1768747830955,4.3808291,3330.3,3329.3,3.43353757]
[1768747831152,3.43003629,3330.3,3329.3,3.43353757]
[1768747834755,3.43003629,3330.3,3329.3,0.96253757]
[1768747835157,3.43003629,3330.3,3329.1,2.47217417]
[1768747835158,3.43003629,3330.3,3329.1,3.43471174]
[1768747835853,3.43003629,3330.2,3329.1,0.00317417]
[1768747836054,4.18785506,3329.9,3329.1,0.00317417]
[1768747837655,0.96253757,3329.7,3329.1,0.00317417]
[1768747837862,0.96253757,3329.7,3328.4,0.15028]
[1768747838165,0.96253757,3329.7,3328.4,2.61828]
[1768747838858,3.22531749,3329.6,3328.4,1.11498305]
[1768747839047,3.22531749,3330.6,3329.2,0.96253757]
[1768747839245,4.17496915,3330.5,3329.2,0.96253757]
[1768747839457,0.94965166,3330.4,3329.2,0.96253757]
[1768747839758,0.94965166,3330.3,3329.2,0.96253757]
[1768747839956,3.22531749,3330.5,3329.2,0.96253757]
[1768747840162,0.9494894,3330.4,3329.2,0.96253757]
[1768747840360,0.9494894,3330.3,3329.2,0.96253757]
[1768747840550,3.22531749,3330.5,3329.2,0.96253757]
[1768747840751,0.95059777,3330.4,3329.2,0.96253757]
[1768747840951,0.95059777,3330.3,3329.2,0.96253757]
[1768747841154,3.22531749,3330.5,3329.2,0.96253757]
[1768747841469,0.95059624,3330.4,3329.2,0.96253757]
[1768747841762,0.95059624,3330.3,3329.2,0.96253757]
[1768747841958,3.22531749,3330.5,3329.2,0.96253757]
[1768747842158,0.95055009,3330.4,3329.2,0.96253757]
[1768747842355,0.95055009,3330.3,3329.2,0.96253757]
[1768747842554,3.22531749,3330.5,3329.2,0.96253757]
[1768747842860,1.91305854,3330.4,3329.2,0.96253757]
[1768747843158,0.95052097,3330.3,3329.2,0.96253757]
[1768747843360,0.96253757,3330.4,3329.2,0.96253757]
[1768747843561,0.95050401,3330.3,3329.0,0.96253757]
[1768747843759,4.18785506,3330.4,3329.0,0.96253757]
[1768747843964,0.95050401,3330.3,3329.0,0.96253757]
[1768747844158,4.18785506,3330.4,3329.0,0.96253757]
[1768747844360,0.95050421,3330.3,3329.0,0.96253757]
[1768747844559,4.18785506,3330.4,3329.0,0.96253757]
[1768747844859,0.95050747,3330.3,3329.0,0.96253757]
[1768747845060,4.18785506,3330.4,3329.0,0.96253757]
[1768747845260,0.95050308,3330.3,3329.0,0.96253757]
[1768747845565,4.18785506,3330.4,3329.0,0.96253757]
[1768747845753,0.9505024,3330.3,3329.0,0.96253757]
[1768747845954,4.18785506,3330.4,3329.0,0.96253757]
[1768747846154,0.9505024,3330.3,3329.0,0.96253757]
[1768747846452,4.18785506,3330.4,3329.0,0.96253757]
[1768747846654,0.95051324,3330.3,3329.0,0.96253757]
[1768747846965,3.22531749,3330.3,3328.8,0.15026]
[1768747847166,3.22531749,3330.3,3329.0,0.96253757]
[1768747847356,3.22531749,3330.1,3329.0,0.96253757]
[1768747852273,3.22531749,3330.1,3328.8,2.61426]
[1768747852572,3.22531749,3330.1,3329.0,0.96253757]
[1768747854072,3.37586672,3330.6,3329.4,0.96253757]
[1768747854368,3.37586672,3330.6,3329.0,3.58046688]
[1768747854369,0.95083974,3330.5,3329.0,3.58046688]
[1768747854566,0.95083974,3330.4,3329.4,0.96253757]
[1768747854766,3.37586672,3330.6,3329.4,0.96253757]
[1768747854970,0.95094098,3330.5,3329.4,0.96253757]
[1768747855165,0.95094098,3330.4,3329.4,0.96253757]
[1768747855364,3.37586672,3330.6,3329.4,0.96253757]
[1768747855672,0.95107582,3330.5,3329.4,0.96253757]
[1768747855872,0.95107582,3330.4,3329.4,0.96253757]
[1768747856171,3.37586672,3330.6,3329.4,0.96253757]
[1768747856373,0.95107545,3330.5,3329.4,0.96253757]
[1768747856572,0.95107545,3330.4,3329.4,0.96253757]
[1768747856772,3.37586672,3330.6,3329.4,0.96253757]
[1768747856965,0.95122689,3330.5,3329.4,0.96253757]
[1768747857167,0.95122689,3330.4,3329.4,0.96253757]
[1768747857366,3.37586672,3330.6,3329.4,0.96253757]
[1768747857577,0.95140008,3330.5,3329.4,0.96253757]
[1768747857872,0.95140008,3330.4,3329.4,0.96253757]
[1768747858079,3.37586672,3330.6,3329.4,0.96253757]
[1768747858377,0.95140004,3330.5,3329.6,0.96253757]
[1768747858578,0.95140004,3330.4,3329.6,0.96253757]
[1768747858767,3.37586672,3331.0,3329.6,0.96253757]
[1768747858972,0.95160038,3330.9,3329.6,0.96253757]
[1768747859172,0.95160038,3330.8,3329.6,0.96253757]
[1768747859373,0.95160038,3330.7,3329.6,0.96253757]
[1768747859572,0.95160038,3330.6,3329.6,0.96253757]
[1768747859883,0.95160038,3330.5,3329.6,0.96253757]
[1768747860075,0.95160038,3330.4,3329.6,0.96253757]
[1768747860275,4.33840429,3331.0,3329.6,0.96253757]
[1768747860479,0.95171787,3330.9,3329.6,0.96253757]
[1768747860783,0.95171787,3330.8,3329.6,0.96253757]
[1768747860972,0.95171787,3330.7,3329.6,0.96253757]
[1768747861171,0.95171787,3330.6,3329.6,0.96253757]
[1768747861372,0.95171787,3330.5,3329.6,0.96253757]
[1768747861670,0.95171787,3330.4,3329.6,0.96253757]
[1768747861873,3.37586672,3330.9,3329.6,0.96253757]
[1768747862073,0.95171631,3330.8,3329.6,0.96253757]
[1768747862272,0.95171631,3330.7,3329.6,0.96253757]
[1768747862471,0.95171631,3330.6,3329.6,0.96253757]
[1768747862672,0.95171631,3330.5,3329.6,0.96253757]
[1768747862872,0.95171631,3330.4,3329.6,0.96253757]
[1768747863079,3.37586672,3330.9,3329.6,0.96253757]
[1768747863375,0.95171344,3330.8,3329.6,0.96253757]
[1768747863574,0.95171344,3330.7,3329.6,0.96253757]
[1768747863778,0.95171344,3330.6,3329.6,0.96253757]
[1768747863977,0.95171344,3330.5,3329.6,0.96253757]
[1768747864173,0.95171344,3330.4,3329.6,0.96253757]
[1768747864476,3.37586672,3330.9,3329.6,0.96253757]
[1768747864674,0.95169309,3330.8,3329.6,0.96253757]
[1768747864877,0.95169309,3330.7,3329.4,2.462]
[1768747865077,0.95169309,3330.6,3329.4,2.462]
[1768747865279,0.95169309,3330.5,3329.4,2.462]
[1768747865477,0.95169309,3330.4,3329.4,2.462]
[1768747865776,3.37586672,3330.9,3329.4,2.462]
[1768747865977,0.95168115,3330.8,3329.4,2.462]
[1768747866168,0.95168115,3330.7,3329.4,2.462]
[1768747866363,0.95168115,3330.6,3329.4,2.462]
[1768747866567,0.95168115,3330.5,3329.4,2.462]
[1768747866769,0.95168115,3330.4,3329.4,2.462]
[1768747866965,3.37586672,3330.9,3329.4,2.462]
[1768747867166,0.95171942,3330.8,3329.4,2.462]
[1768747867373,0.95171942,3330.7,3329.4,2.462]
[1768747867576,0.95171942,3330.6,3329.4,2.462]
[1768747867776,0.95171942,3330.5,3329.4,5.89221688]
[1768747867980,3.37586672,3331.2,3329.5,3.43021688]
[1768747868184,0.95175653,3331.1,3329.5,3.43021688]
[1768747868377,0.95175653,3331.0,3329.5,3.43021688]
[1768747868679,0.95175653,3330.9,3329.5,3.43021688]
[1768747868878,0.95175653,3330.8,3329.5,3.43021688]
[1768747869073,0.95175653,3330.7,3329.5,3.43021688]
[1768747869272,0.95175653,3330.6,3329.5,3.43021688]
[1768747869481,0.95175653,3330.5,3329.5,3.43021688]
[1768747869674,3.37586672,3331.1,3329.5,3.43021688]
[1768747869978,0.9518728,3331.0,3329.5,3.43021688]
[1768747870179,0.9518728,3330.9,3329.6,2.468]
[1768747870382,0.9518728,3330.8,3329.6,2.468]
[1768747870578,0.9518728,3330.7,3329.6,2.468]
[1768747870780,0.9518728,3330.6,3329.6,2.468]
[1768747871084,0.9518728,3330.5,3329.6,2.468]
[1768747871285,3.37586672,3331.1,3329.6,2.468]
[1768747871581,0.95135002,3331.0,3329.6,2.468]
[1768747871781,0.95135002,3330.9,3329.6,2.468]
[1768747871983,0.95135002,3330.8,3329.6,2.468]
[1768747872182,0.95135002,3330.7,3329.6,2.468]
[1768747872382,0.95135002,3330.6,3329.6,2.468]
[1768747872686,3.37586672,3331.1,3329.7,0.15022]
[1768747873276,3.37586672,3331.1,3329.7,3.58043688]
[1768747876587,0.79127335,3331.4,3329.7,3.58043688]
[1768747877380,4.16714007,3331.4,3329.7,3.58043688]
[1768747878892,4.16714007,3331.4,3329.8,0.15022]
[1768747879486,4.16714007,3331.4,3329.8,3.58043688]
[1768747879686,0.79127335,3331.4,3330.0,4.54298227]
[1768747880382,0.00382142,3331.5,3330.0,4.54298227]
[1768747881988,0.00382142,3331.5,3330.1,3.58042688]
[1768747882187,0.00382142,3331.5,3330.4,0.96255539]
[1768747882589,0.00382142,3331.5,3330.5,2.47]
[1768747886197,3.55575875,3332.1,3330.5,2.62019]
[1768747886396,0.94481658,3332.0,3330.5,2.62019]
[1768747886589,0.94481658,3331.9,3330.6,0.15019]
[1768747886894,3.55575875,3332.1,3330.8,0.96255539]
[1768747887087,0.94457873,3332.0,3330.8,0.96578547]
[1768747887285,0.00284774,3332.1,3330.8,0.96578547]
[1768747887490,0.00284774,3332.1,3330.8,1.11596547]
[1768747888098,0.00284774,3332.1,3330.8,4.42087608]
[1768747888600,0.00284774,3332.1,3330.9,0.15017]
[1768747889387,0.00284774,3332.1,3331.0,3.45508061]
[1768747890992,3.55575875,3333.0,3331.2,4.267466]
[1768747891188,0.9433755,3332.9,3331.3,3.30491061]
[1768747891395,0.9433755,3332.8,3331.4,5.77991061]
[1768747891588,0.9433755,3332.7,3331.4,5.77991061]
[1768747891792,3.55575875,3333.0,3331.4,5.77991061]
[1768747892094,0.94300516,3332.9,3331.4,5.77991061]
[1768747892294,3.55575875,3332.7,3331.4,3.30491061]
[1768747892496,3.55575875,3332.7,3331.0,0.96255539]
[1768747892497,3.55575875,3332.7,3331.5,2.475]
[1768747898407,3.55575875,3332.7,3331.3,0.15015]
[1768747898707,3.55575875,3332.7,3330.8,3.30814069]
[1768747898907,3.55575875,3332.7,3330.9,2.471]
[1768747900304,3.44683291,3332.4,3330.8,2.62441008]
[1768747904310,0.94120312,3332.3,3330.8,2.62441008]
[1768747904610,3.44683291,3332.4,3330.8,2.62441008]
[1768747904802,0.94120291,3332.3,3330.8,2.62441008]
[1768747904995,3.44683291,3332.4,3330.8,2.62441008]
[1768747905199,0.94120745,3332.3,3330.8,2.62441008]
[1768747905400,3.44683291,3332.4,3330.8,2.62441008]
[1768747905606,0.94142605,3332.3,3330.8,2.62441008]
[1768747905808,3.44683291,3332.4,3330.8,2.62441008]
[1768747906008,0.94142605,3332.3,3330.8,2.62441008]
[1768747906209,3.44683291,3332.4,3330.8,2.62441008]
[1768747906508,0.94168367,3332.3,3330.8,2.62441008]
[1768747906810,3.44683291,3332.4,3330.8,2.62441008]
[1768747907006,0.94168367,3332.3,3330.8,2.62441008]
[1768747907207,3.44683291,3332.4,3330.8,2.62441008]
[1768747907402,0.94198788,3332.3,3330.8,2.62441008]
[1768747907602,3.44683291,3332.4,3330.8,2.62441008]
[1768747907907,0.94198788,3332.3,3330.8,2.62441008]
[1768747908110,3.44683291,3332.4,3330.8,2.62441008]
[1768747908310,0.94198788,3332.3,3330.8,2.62441008]
[1768747908511,0.94198788,3332.2,3330.8,2.62441008]
[1768747908703,3.44683291,3332.4,3330.8,2.62441008]
[1768747909008,0.94234038,3332.3,3330.8,2.62441008]
[1768747909201,0.94234038,3332.2,3330.8,2.62441008]
[1768747909403,3.44683291,3332.4,3330.8,2.62441008]
[1768747909605,0.9427639,3332.3,3330.8,2.62441008]
[1768747909806,0.9427639,3332.2,3330.8,2.62441008]
[1768747910012,3.44683291,3332.4,3330.8,2.62441008]
[1768747910213,0.94276385,3332.3,3330.8,2.62441008]
[1768747910412,0.94276385,3332.2,3330.8,2.62441008]
[1768747910621,3.44683291,3332.4,3330.8,2.62441008]
[1768747910816,0.94296094,3332.3,3330.8,2.62441008]
[1768747911009,0.94296094,3332.2,3330.8,2.62441008]
[1768747911211,3.44683291,3332.4,3330.8,2.62441008]
[1768747911511,0.94317989,3332.3,3330.8,2.62441008]
[1768747911700,0.94317989,3332.2,3330.8,2.62441008]
[1768747911906,0.94317989,3332.1,3330.8,2.62441008]
[1768747912106,3.44683291,3332.4,3330.8,5.83947125]
[1768747912408,0.94317886,3332.3,3330.9,3.39458876]
[1768747912608,0.94317886,3332.2,3330.9,3.39458876]
[1768747912805,0.94317886,3332.1,3330.9,3.39458876]
[1768747913010,3.3899204,3332.9,3330.9,3.39458876]
[1768747913309,3.3899204,3332.7,3330.9,3.39458876]
[1768747913509,4.33330194,3332.6,3330.9,3.39458876]
[1768747913719,0.94338154,3332.5,3330.9,3.39458876]
[1768747914313,4.33330194,3332.5,3330.9,3.39458876]
[1768747914517,4.33330194,3332.4,3330.9,3.39458876]
[1768747914815,0.94338154,3332.3,3330.9,3.39458876]
[1768747917111,4.33330194,3332.3,3330.8,2.62441008]
[1768747917313,0.94338154,3332.2,3330.8,2.62441008]
[1768747920823,0.94338154,3332.2,3330.8,6.01899884]
[1768747924023,3.3899204,3332.1,3330.8,0.00323008]
[1768747924223,3.3899204,3331.9,3330.8,0.00323008]
[1768747924413,4.33330194,3331.8,3330.8,0.00323008]
[1768747924609,0.94338154,3331.7,3330.8,0.00323008]
[1768747925522,4.33330194,3331.7,3330.8,0.00323008]
[1768747925719,3.3899204,3331.7,3330.8,0.00323008]
[1768747926424,3.3899204,3331.5,3330.1,0.15021]
[1768747927018,4.3521851,3331.5,3330.1,1.1124747]
[1768747927326,4.3521851,3331.5,3330.1,1.11548813]
[1768747927715,4.3521851,3331.3,3330.1,0.00301343]
[1768747929117,3.3899204,3331.2,3330.1,0.00301343]
[1768747929317,4.33374726,3331.1,3330.1,0.00301343]
[1768747929513,3.3899204,3331.1,3330.1,0.00301343]
[1768747938131,3.3899204,3330.9,3330.1,0.00301343]
[1768747938319,4.3521851,3330.8,3330.1,0.00301343]
[1768747938520,4.3521851,3330.8,3329.7,0.15022]
[1768747938722,3.3899204,3330.8,3329.7,0.15022]
[1768747939117,3.10396846,3332.0,3329.2,3.39458876]
[1768747939118,3.3899204,3330.6,3329.2,3.4232647]
[1768747939729,3.3922494,3330.6,3329.2,3.42700492]
[1768747940221,3.3922494,3330.6,3329.2,0.96600492]
[1768747941128,3.3922494,3330.6,3329.4,0.9622647]
[1768747942626,3.3922494,3330.6,3329.3,0.9622647]
[1768747946433,3.3922494,3330.6,3329.2,2.47174022]
[1768747946635,3.3922494,3330.6,3329.3,0.9622647]
[1768747950531,3.3922494,3330.6,3329.2,2.47174022]
[1768747950732,3.3922494,3330.6,3329.4,0.9622647]
[1768747952337,0.002329,3330.6,3329.6,0.9622647]
[1768747952522,0.002329,3330.6,3329.9,0.9622647]
[1768747954132,0.002329,3330.6,3329.7,0.9622647]
[1768747954436,0.002329,3330.6,3329.3,3.55118554]
[1768747954630,0.002329,3330.6,3329.7,0.9622647]
[1768747960345,0.002329,3330.6,3329.5,2.462]
[1768747960649,0.002329,3330.6,3329.8,0.9622647]
[1768747962744,0.002329,3330.6,3329.5,2.462]
[1768747962942,0.002329,3330.6,3329.8,0.9622647]
[1768747963342,0.002329,3330.6,3329.5,2.462]
[1768747963543,0.002329,3330.6,3329.8,0.9622647]
[1768747965949,0.002329,3330.6,3330.0,0.9622647]
[1768747972756,0.002329,3330.6,3329.6,3.41622301]
[1768747972946,0.002329,3330.6,3329.8,0.9622647]
[1768747978159,0.002329,3330.6,3329.6,3.56645301]
[1768747978355,0.002329,3330.6,3329.8,0.9622647]
[1768747988962,0.002329,3330.6,3329.7,2.452]
[1768748001770,0.002329,3330.6,3329.6,3.56645301]
[1768748001968,0.002329,3330.6,3329.7,2.445]
[1768748008981,0.002329,3330.6,3329.7,5.72848388]
[1768748012683,0.002329,3330.6,3329.8,3.28348388]
[1768748032816,0.002329,3330.6,3329.9,2.472]
[1768748038222,0.002329,3330.6,3329.8,3.28348388]
[1768748038420,0.002329,3330.6,3329.8,5.75348388]
[1768748038612,0.002329,3330.6,3329.8,3.28348388]
[1768748038812,0.002329,3330.6,3329.7,2.469]
[1768748042525,0.002329,3330.6,3329.5,0.15023]
[1768748042729,0.94765038,3330.5,3329.5,0.15023]
[1768748042917,0.94765038,3330.4,3329.5,0.15023]
[1768748043116,0.002329,3330.6,3329.5,0.15023]
[1768748043414,0.94767013,3330.5,3329.5,0.15023]
[1768748043613,0.94767013,3330.4,3329.5,0.15023]
[1768748043829,3.43948841,3330.6,3329.5,0.15023]
[1768748044020,0.94721643,3330.5,3329.5,0.15023]
[1768748044222,0.94721643,3330.4,3329.5,0.15023]
[1768748044527,3.43948841,3330.6,3329.5,0.15023]
[1768748044828,0.94696988,3330.5,3329.5,0.15023]
[1768748045028,0.94696988,3330.4,3329.5,0.15023]
[1768748045227,3.43948841,3330.6,3329.5,0.15023]
[1768748045523,0.94679866,3330.5,3329.5,0.15023]
[1768748045826,0.002329,3330.6,3329.5,3.56300363]
[1768748048933,0.002329,3330.6,3329.9,0.96235844]
[1768748054829,0.002329,3330.6,3329.6,0.15023]
[1768748055034,0.94776557,3330.5,3329.6,0.15023]
[1768748055326,3.43715941,3330.5,3329.2,0.00374022]
[1768748055531,1.91004523,3330.4,3329.2,0.00374022]
[1768748055731,0.94769421,3330.3,3329.2,0.00374022]
[1768748056032,0.96235844,3330.4,3329.2,0.00374022]
[1768748058943,3.43715941,3330.5,3329.2,0.00374022]
[1768748059137,1.90959341,3330.4,3329.2,0.00374022]
[1768748059330,0.96235844,3330.4,3329.2,0.00374022]
[1768748062439,3.43715941,3330.5,3329.2,0.96609866]
[1768748062640,0.94692468,3330.4,3329.2,0.96609866]
[1768748062838,3.43715941,3330.5,3329.2,0.96609866]
[1768748063036,0.94692428,3330.4,3329.2,0.96609866]
[1768748063232,3.43715941,3330.5,3329.2,0.96609866]
[1768748063532,0.94688242,3330.4,3329.2,0.96609866]
[1768748063738,3.43715941,3330.5,3329.2,0.96609866]
[1768748063939,0.94688242,3330.4,3329.2,0.96609866]
[1768748064140,3.43715941,3330.5,3329.2,0.96609866]
[1768748064341,0.94686034,3330.4,3329.2,0.96609866]
[1768748064550,3.43715941,3330.5,3329.2,0.96609866]
[1768748064751,0.94685059,3330.4,3329.2,0.96609866]
[1768748065049,3.43715941,3330.5,3329.2,0.96609866]
[1768748065363,0.94685078,3330.4,3329.2,0.96609866]
[1768748065554,3.43715941,3330.5,3329.2,0.96609866]
[1768748065750,3.31559209,3330.3,3329.2,0.00374022]
[1768748066064,0.96235844,3330.0,3329.2,0.00374022]
[1768748066256,4.26245372,3330.2,3329.2,0.00374022]
[1768748066257,4.27795053,3330.2,3329.2,0.00374022]
[1768748066456,0.94672375,3330.1,3329.2,0.00374022]
[1768748066657,4.27795053,3330.2,3329.2,0.00374022]
[1768748066857,0.94672374,3330.1,3329.2,0.00374022]
[1768748067154,4.27795053,3330.2,3329.2,0.00374022]
[1768748067354,0.94657485,3330.1,3329.2,0.00374022]
[1768748067663,3.31559209,3330.2,3329.2,0.00374022]
[1768748067859,0.94656023,3330.1,3329.2,0.00374022]
[1768748068161,3.31559209,3330.2,3329.2,0.00374022]
[1768748080266,0.94641304,3330.1,3329.2,0.00374022]
[1768748080466,4.27795053,3330.2,3329.2,0.00374022]
[1768748080764,0.94641304,3330.1,3329.2,0.00374022]